[Event "Titled Tuesday Blitz February 14 Early 2023"]
[White "AidenRchess"]
[Black "Fan_Of_Chucky"]
[WhiteElo "2517"]
[BlackElo "2323"]
[Result "1-0"]
[Round "11"]
[TimeControl "180+2"]
[Date "2023.02.14"]
[WhiteClock "0:02:26"]
[BlackClock "0:01:46"]

1. e4 {[%clk 0:03:00]}  c5 {[%clk 0:02:57]} 2. Nf3 {[%clk 0:03:00]}  a6 {[%clk 0:02:57]} 3. c4 {[%clk 0:02:59]}  Nc6 {[%clk 0:02:57]} 4. Nc3 {[%clk 0:02:59]}  Nd4 {[%clk 0:02:56]} 5. Nxd4 {[%clk 0:02:58]}  cxd4 {[%clk 0:02:57]} 6. Ne2 {[%clk 0:02:59]}  e5 {[%clk 0:02:54]} 7. d3 {[%clk 0:02:59]}  Nf6 {[%clk 0:02:50]} 8. Ng3 {[%clk 0:02:57]}  b5 {[%clk 0:02:45]} 9. cxb5 {[%clk 0:02:53]}  axb5 {[%clk 0:02:46]} 10. Be2 {[%clk 0:02:53]}  d6 {[%clk 0:02:45]} 11. O-O {[%clk 0:02:53]}  Be7 {[%clk 0:02:46]} 12. f4 {[%clk 0:02:50]}  O-O {[%clk 0:02:45]} 13. f5 {[%clk 0:02:49]}  d5 {[%clk 0:02:44]} 14. exd5 {[%clk 0:02:47]}  Nxd5 {[%clk 0:02:38]} 15. Ne4 {[%clk 0:02:47]}  Bf6 {[%clk 0:02:33]} 16. Qe1 {[%clk 0:02:45]}  g6 {[%clk 0:02:11]} 17. Bh6 {[%clk 0:02:36]}  Bg7 {[%clk 0:01:57]} 18. Bxg7 {[%clk 0:02:34]}  Kxg7 {[%clk 0:01:58]} 19. f6+ {[%clk 0:02:31]}  Kg8 {[%clk 0:01:54]} 20. Qh4 {[%clk 0:02:30]}  Bf5 {[%clk 0:01:46]} 21. Rxf5 {[%clk 0:02:26]} 1-0


[Site "https://www.chess.com"]

[Event "Titled Tuesday Blitz February 14 Early 2023"]
[White "Fernandez Siles, Luis"]
[Black "Bilan, Danila"]
[WhiteFideId "2209420"]
[BlackFideId "24161918"]
[WhiteElo "2218"]
[BlackElo "2303"]
[Result "0-1"]
[Round "11"]
[TimeControl "180+2"]
[Date "2023.02.14"]
[WhiteClock "0:00:01"]
[BlackClock "0:00:49"]

1. d4 {[%clk 0:03:00]}  d5 {[%clk 0:02:59]} 2. c4 {[%clk 0:03:00]}  c6 {[%clk 0:02:59]} 3. Nc3 {[%clk 0:03:00]}  Nf6 {[%clk 0:02:59]} 4. cxd5 {[%clk 0:03:00]}  cxd5 {[%clk 0:02:57]} 5. Bf4 {[%clk 0:03:01]}  Bf5 {[%clk 0:02:41]} 6. e3 {[%clk 0:02:58]}  Nc6 {[%clk 0:02:36]} 7. Qb3 {[%clk 0:02:57]}  Qb6 {[%clk 0:02:36]} 8. Qxb6 {[%clk 0:02:32]}  axb6 {[%clk 0:02:37]} 9. Bb5 {[%clk 0:02:29]}  e6 {[%clk 0:02:29]} 10. Nf3 {[%clk 0:02:27]}  Nd7 {[%clk 0:02:25]} 11. O-O {[%clk 0:02:09]}  Bb4 {[%clk 0:02:21]} 12. Rfc1 {[%clk 0:02:05]}  O-O {[%clk 0:02:08]} 13. a3 {[%clk 0:02:06]}  Be7 {[%clk 0:01:55]} 14. Ne5 {[%clk 0:01:29]}  Ncxe5 {[%clk 0:01:42]} 15. Bxe5 {[%clk 0:01:23]}  Nxe5 {[%clk 0:01:38]} 16. dxe5 {[%clk 0:01:24]}  Rfc8 {[%clk 0:01:37]} 17. Na4 {[%clk 0:01:07]}  Bd8 {[%clk 0:01:37]} 18. Bd7 {[%clk 0:01:00]}  Rc2 {[%clk 0:01:25]} 19. b4 {[%clk 0:00:42]}  Kf8 {[%clk 0:01:11]} 20. Bb5 {[%clk 0:00:37]}  Rac8 {[%clk 0:01:04]} 21. Rxc2 {[%clk 0:00:30]}  Rxc2 {[%clk 0:01:05]} 22. h3 {[%clk 0:00:20]}  Bc7 {[%clk 0:01:02]} 23. g4 {[%clk 0:00:16]}  Be4 {[%clk 0:00:58]} 24. Rd1 {[%clk 0:00:04]}  Bf3 {[%clk 0:00:56]} 25. Rd4 {[%clk 0:00:03]}  Rc1+ {[%clk 0:00:49]} 26. Kh2 {[%clk 0:00:01]}  Bxe5+ {[%clk 0:00:49]} 0-1


[Site "https://www.chess.com"]

[Event "Titled Tuesday Blitz February 14 Early 2023"]
[White "Hajiyev, Kanan"]
[Black "Colijn, Stefan"]
[WhiteFideId "13404148"]
[BlackFideId "1016199"]
[WhiteElo "2197"]
[BlackElo "2293"]
[Result "1-0"]
[Round "11"]
[TimeControl "180+2"]
[Date "2023.02.14"]
[WhiteClock "0:00:04"]
[BlackClock "0:00:03"]

1. d4 {[%clk 0:03:00]}  Nf6 {[%clk 0:02:44]} 2. Nf3 {[%clk 0:02:59]}  e6 {[%clk 0:02:44]} 3. c4 {[%clk 0:02:59]}  Bb4+ {[%clk 0:02:31]} 4. Bd2 {[%clk 0:02:57]}  a5 {[%clk 0:02:31]} 5. a3 {[%clk 0:02:57]}  Bxd2+ {[%clk 0:02:27]} 6. Qxd2 {[%clk 0:02:58]}  b6 {[%clk 0:02:27]} 7. g3 {[%clk 0:02:58]}  Bb7 {[%clk 0:02:25]} 8. Bg2 {[%clk 0:02:58]}  O-O {[%clk 0:02:19]} 9. Nc3 {[%clk 0:02:58]}  Ne4 {[%clk 0:02:19]} 10. Qc2 {[%clk 0:02:55]}  f5 {[%clk 0:02:15]} 11. O-O {[%clk 0:02:54]}  d6 {[%clk 0:02:14]} 12. h4 {[%clk 0:02:27]}  Nxc3 {[%clk 0:01:54]} 13. Qxc3 {[%clk 0:02:26]}  Nd7 {[%clk 0:01:55]} 14. d5 {[%clk 0:01:52]}  e5 {[%clk 0:01:37]} 15. Ng5 {[%clk 0:01:52]}  Qf6 {[%clk 0:01:32]} 16. Ne6 {[%clk 0:01:50]}  Rfc8 {[%clk 0:01:33]} 17. e4 {[%clk 0:01:43]}  Nf8 {[%clk 0:01:13]} 18. exf5 {[%clk 0:01:33]}  Qxf5 {[%clk 0:01:06]} 19. Ng5 {[%clk 0:01:27]}  h6 {[%clk 0:00:54]} 20. Bh3 {[%clk 0:01:27]}  Qg6 {[%clk 0:00:45]} 21. Ne6 {[%clk 0:01:04]}  c6 {[%clk 0:00:28]} 22. Qb3 {[%clk 0:00:51]}  cxd5 {[%clk 0:00:15]} 23. cxd5 {[%clk 0:00:51]}  Nd7 {[%clk 0:00:15]} 24. Rac1 {[%clk 0:00:40]}  Rxc1 {[%clk 0:00:14]} 25. Rxc1 {[%clk 0:00:41]}  Rc8 {[%clk 0:00:14]} 26. Rxc8+ {[%clk 0:00:36]}  Bxc8 {[%clk 0:00:15]} 27. Qc3 {[%clk 0:00:35]}  Nc5 {[%clk 0:00:15]} 28. Nxc5 {[%clk 0:00:09]}  Bxh3 {[%clk 0:00:14]} 29. Kh2 {[%clk 0:00:08]}  Bg4 {[%clk 0:00:09]} 30. Ne6 {[%clk 0:00:04]}  Bxe6 {[%clk 0:00:06]} 31. dxe6 {[%clk 0:00:05]}  Qxe6 {[%clk 0:00:06]} 32. Qc6 {[%clk 0:00:04]}  Qf6 {[%clk 0:00:05]} 33. Kg1 {[%clk 0:00:03]}  Qe6 {[%clk 0:00:04]} 34. Qxb6 {[%clk 0:00:04]}  a4 {[%clk 0:00:04]} 35. Qb4 {[%clk 0:00:04]}  d5 {[%clk 0:00:03]} 36. Qxa4 {[%clk 0:00:04]}  e4 {[%clk 0:00:03]} 37. Qa8+ {[%clk 0:00:03]}  Kh7 {[%clk 0:00:03]} 38. a4 {[%clk 0:00:04]}  Qg4 {[%clk 0:00:03]} 39. Qxd5 {[%clk 0:00:04]} 1-0


[Site "https://www.chess.com"]

[Event "Titled Tuesday Blitz February 14 Early 2023"]
[White "Smietanska, Wiktoria"]
[Black "Mujumdar, Sameer"]
[WhiteFideId "21869359"]
[BlackFideId "2029707"]
[WhiteElo "1936"]
[BlackElo "1992"]
[Result "1-0"]
[Round "11"]
[TimeControl "180+2"]
[Date "2023.02.14"]
[WhiteClock "0:02:01"]
[BlackClock "0:01:49"]

1. c4 {[%clk 0:03:00]}  Nf6 {[%clk 0:02:55]} 2. Nc3 {[%clk 0:03:00]}  g6 {[%clk 0:02:56]} 3. g3 {[%clk 0:03:00]}  Bg7 {[%clk 0:02:56]} 4. Bg2 {[%clk 0:03:01]}  O-O {[%clk 0:02:56]} 5. e4 {[%clk 0:03:01]}  d6 {[%clk 0:02:57]} 6. Nge2 {[%clk 0:03:02]}  c5 {[%clk 0:02:57]} 7. O-O {[%clk 0:03:02]}  Nc6 {[%clk 0:02:54]} 8. d3 {[%clk 0:03:03]}  Bd7 {[%clk 0:02:53]} 9. h3 {[%clk 0:03:01]}  a6 {[%clk 0:02:51]} 10. Be3 {[%clk 0:03:01]}  Rb8 {[%clk 0:02:46]} 11. a4 {[%clk 0:03:00]}  Ne8 {[%clk 0:02:41]} 12. d4 {[%clk 0:02:57]}  cxd4 {[%clk 0:02:40]} 13. Nxd4 {[%clk 0:02:56]}  Nc7 {[%clk 0:02:40]} 14. Rc1 {[%clk 0:02:50]}  Ne6 {[%clk 0:02:32]} 15. Nde2 {[%clk 0:02:46]}  Qc8 {[%clk 0:02:21]} 16. Nd5 {[%clk 0:02:44]}  Re8 {[%clk 0:02:18]} 17. b3 {[%clk 0:02:38]}  Nc7 {[%clk 0:02:17]} 18. Nb6 {[%clk 0:02:33]}  Qd8 {[%clk 0:02:17]} 19. f4 {[%clk 0:02:29]}  e6 {[%clk 0:02:09]} 20. Qxd6 {[%clk 0:02:26]}  Bc8 {[%clk 0:02:07]} 21. Bc5 {[%clk 0:02:17]}  Na8 {[%clk 0:01:48]} 22. Qxd8 {[%clk 0:02:08]}  Rxd8 {[%clk 0:01:48]} 23. Nxa8 {[%clk 0:02:03]}  Rxa8 {[%clk 0:01:49]} 24. Rfd1 {[%clk 0:02:02]}  Bd7 {[%clk 0:01:49]} 25. Bb6 {[%clk 0:02:01]} 1-0


[Site "https://www.chess.com"]

[Event "Titled Tuesday Blitz February 14 Early 2023"]
[White "Colbow, Collin"]
[Black "Kvaloy, Aksel Bu"]
[WhiteFideId "16201132"]
[BlackFideId "1528815"]
[WhiteElo "2408"]
[BlackElo "2321"]
[Result "0-1"]
[Round "11"]
[TimeControl "180+2"]
[Date "2023.02.14"]
[WhiteClock "0:00:10"]
[BlackClock "0:00:57"]

1. d4 {[%clk 0:03:00]}  Nf6 {[%clk 0:02:59]} 2. Nf3 {[%clk 0:03:00]}  e6 {[%clk 0:02:56]} 3. e3 {[%clk 0:03:00]}  c5 {[%clk 0:02:54]} 4. Bd3 {[%clk 0:02:58]}  b6 {[%clk 0:02:53]} 5. O-O {[%clk 0:02:57]}  Bb7 {[%clk 0:02:53]} 6. c3 {[%clk 0:02:57]}  cxd4 {[%clk 0:02:54]} 7. exd4 {[%clk 0:02:57]}  Be7 {[%clk 0:02:54]} 8. h3 {[%clk 0:02:54]}  O-O {[%clk 0:02:54]} 9. Bf4 {[%clk 0:02:55]}  d6 {[%clk 0:02:54]} 10. Nbd2 {[%clk 0:02:55]}  Nbd7 {[%clk 0:02:54]} 11. Re1 {[%clk 0:02:56]}  a6 {[%clk 0:02:53]} 12. a4 {[%clk 0:02:55]}  Re8 {[%clk 0:02:52]} 13. Bh2 {[%clk 0:02:46]}  h6 {[%clk 0:02:52]} 14. b4 {[%clk 0:02:31]}  Rc8 {[%clk 0:02:45]} 15. c4 {[%clk 0:02:31]}  a5 {[%clk 0:02:39]} 16. b5 {[%clk 0:02:20]}  d5 {[%clk 0:02:38]} 17. Ne5 {[%clk 0:02:17]}  dxc4 {[%clk 0:02:38]} 18. Ndxc4 {[%clk 0:02:13]}  Nxe5 {[%clk 0:02:30]} 19. dxe5 {[%clk 0:02:05]}  Nd5 {[%clk 0:02:29]} 20. Qg4 {[%clk 0:01:47]}  Bf8 {[%clk 0:02:22]} 21. Rad1 {[%clk 0:01:42]}  Kh8 {[%clk 0:01:57]} 22. h4 {[%clk 0:01:42]}  Bb4 {[%clk 0:01:41]} 23. Rf1 {[%clk 0:01:18]}  Qe7 {[%clk 0:01:35]} 24. h5 {[%clk 0:01:14]}  Nc3 {[%clk 0:01:27]} 25. Rc1 {[%clk 0:01:12]}  Red8 {[%clk 0:01:25]} 26. Nd6 {[%clk 0:01:11]}  Bxd6 {[%clk 0:01:18]} 27. exd6 {[%clk 0:01:12]}  Rxd6 {[%clk 0:01:18]} 28. Bxd6 {[%clk 0:01:05]}  Qxd6 {[%clk 0:01:19]} 29. Be2 {[%clk 0:00:55]}  f5 {[%clk 0:01:09]} 30. Qc4 {[%clk 0:00:26]}  Rxc4 {[%clk 0:01:07]} 31. Bxc4 {[%clk 0:00:27]}  Qd4 {[%clk 0:01:05]} 32. Rc2 {[%clk 0:00:13]}  Qe4 {[%clk 0:00:57]} 33. Rxc3 {[%clk 0:00:10]}  Qxg2# {[%clk 0:00:57]} 0-1


[Site "https://www.chess.com"]

[Event "Titled Tuesday Blitz February 14 Early 2023"]
[White "Cella, Glaucio Dalla Cortt"]
[Black "Mushini Ajay"]
[WhiteFideId "2119455"]
[BlackFideId "35066188"]
[WhiteElo "1894"]
[BlackElo "2310"]
[Result "1/2-1/2"]
[Round "11"]
[TimeControl "180+2"]
[Date "2023.02.14"]
[WhiteClock "0:00:07"]
[BlackClock "0:00:22"]

1. e4 {[%clk 0:03:00]}  c5 {[%clk 0:02:58]} 2. Nf3 {[%clk 0:03:00]}  d6 {[%clk 0:02:55]} 3. c3 {[%clk 0:03:00]}  Nf6 {[%clk 0:02:54]} 4. Be2 {[%clk 0:02:58]}  Nc6 {[%clk 0:02:54]} 5. d4 {[%clk 0:02:58]}  cxd4 {[%clk 0:02:54]} 6. cxd4 {[%clk 0:02:59]}  d5 {[%clk 0:02:53]} 7. e5 {[%clk 0:02:57]}  Ne4 {[%clk 0:02:53]} 8. Nc3 {[%clk 0:02:57]}  Nxc3 {[%clk 0:02:53]} 9. bxc3 {[%clk 0:02:58]}  Bf5 {[%clk 0:02:52]} 10. Qb3 {[%clk 0:02:45]}  Rb8 {[%clk 0:02:46]} 11. Nh4 {[%clk 0:02:35]}  Be4 {[%clk 0:02:07]} 12. e6 {[%clk 0:02:01]}  fxe6 {[%clk 0:01:59]} 13. f3 {[%clk 0:02:02]}  Bf5 {[%clk 0:01:57]} 14. Nxf5 {[%clk 0:02:02]}  exf5 {[%clk 0:01:57]} 15. Bf4 {[%clk 0:02:03]}  e6 {[%clk 0:01:50]} 16. Bxb8 {[%clk 0:01:58]}  Qxb8 {[%clk 0:01:51]} 17. Rb1 {[%clk 0:01:59]}  Nd8 {[%clk 0:01:51]} 18. Bb5+ {[%clk 0:01:58]}  Kf7 {[%clk 0:01:51]} 19. O-O {[%clk 0:01:58]}  Bd6 {[%clk 0:01:51]} 20. h3 {[%clk 0:01:37]}  Qc7 {[%clk 0:01:34]} 21. c4 {[%clk 0:01:31]}  a6 {[%clk 0:01:33]} 22. cxd5 {[%clk 0:01:22]}  axb5 {[%clk 0:01:32]} 23. dxe6+ {[%clk 0:01:22]}  Ke7 {[%clk 0:01:24]} 24. d5 {[%clk 0:01:18]}  b4 {[%clk 0:01:22]} 25. Rbc1 {[%clk 0:01:14]}  Qb6+ {[%clk 0:01:21]} 26. Kh1 {[%clk 0:01:12]}  Qd4 {[%clk 0:01:15]} 27. Qa4 {[%clk 0:00:48]}  Qf4 {[%clk 0:00:58]} 28. Qd7+ {[%clk 0:00:46]}  Kf6 {[%clk 0:00:58]} 29. Kg1 {[%clk 0:00:27]}  Qh2+ {[%clk 0:00:48]} 30. Kf2 {[%clk 0:00:27]}  Qg3+ {[%clk 0:00:48]} 31. Kg1 {[%clk 0:00:27]}  Qh2+ {[%clk 0:00:44]} 32. Kf2 {[%clk 0:00:27]}  Bg3+ {[%clk 0:00:44]} 33. Ke3 {[%clk 0:00:15]}  Bf4+ {[%clk 0:00:43]} 34. Kf2 {[%clk 0:00:15]}  Qg3+ {[%clk 0:00:41]} 35. Kg1 {[%clk 0:00:14]}  Be3+ {[%clk 0:00:37]} 36. Kh1 {[%clk 0:00:12]}  Bf4 {[%clk 0:00:37]} 37. Kg1 {[%clk 0:00:11]}  Qh2+ {[%clk 0:00:31]} 38. Kf2 {[%clk 0:00:08]}  Bxc1 {[%clk 0:00:27]} 39. Rxc1 {[%clk 0:00:09]}  Qf4 {[%clk 0:00:25]} 40. Re1 {[%clk 0:00:09]}  Qd4+ {[%clk 0:00:24]} 41. Kf1 {[%clk 0:00:08]}  Qd3+ {[%clk 0:00:24]} 42. Kg1 {[%clk 0:00:08]}  Qd2 {[%clk 0:00:25]} 43. Kf1 {[%clk 0:00:07]}  Qd3+ {[%clk 0:00:24]} 44. Kg1 {[%clk 0:00:07]}  Qd4+ {[%clk 0:00:23]} 45. Kf1 {[%clk 0:00:07]}  Qd3+ {[%clk 0:00:22]} 1/2-1/2


[Site "https://www.chess.com"]

[Event "Titled Tuesday Blitz February 14 Early 2023"]
[White "Kulkarni, Vikramaditya"]
[Black "Toncheva, Nadya"]
[WhiteFideId "5009847"]
[BlackFideId "2924056"]
[WhiteElo "2251"]
[BlackElo "2295"]
[Result "0-1"]
[Round "11"]
[TimeControl "180+2"]
[Date "2023.02.14"]
[WhiteClock "0:00:01"]
[BlackClock "0:00:04"]

1. d4 {[%clk 0:03:00]}  d5 {[%clk 0:02:59]} 2. c4 {[%clk 0:03:00]}  dxc4 {[%clk 0:03:00]} 3. e3 {[%clk 0:02:57]}  Nf6 {[%clk 0:03:00]} 4. Bxc4 {[%clk 0:02:57]}  e6 {[%clk 0:03:00]} 5. Nf3 {[%clk 0:02:55]}  a6 {[%clk 0:03:01]} 6. O-O {[%clk 0:02:55]}  c5 {[%clk 0:03:02]} 7. Qe2 {[%clk 0:02:55]}  Nc6 {[%clk 0:03:02]} 8. Rd1 {[%clk 0:02:55]}  b5 {[%clk 0:02:58]} 9. d5 {[%clk 0:02:37]}  exd5 {[%clk 0:02:45]} 10. Bxd5 {[%clk 0:02:37]}  Nxd5 {[%clk 0:02:20]} 11. e4 {[%clk 0:02:37]}  Qe7 {[%clk 0:01:59]} 12. Rxd5 {[%clk 0:02:36]}  Be6 {[%clk 0:01:53]} 13. Rd1 {[%clk 0:02:24]}  Qc7 {[%clk 0:01:44]} 14. Nc3 {[%clk 0:02:22]}  Be7 {[%clk 0:01:12]} 15. Nd5 {[%clk 0:02:22]}  Qb7 {[%clk 0:01:12]} 16. Be3 {[%clk 0:02:08]}  O-O {[%clk 0:01:08]} 17. Rac1 {[%clk 0:02:03]}  c4 {[%clk 0:00:52]} 18. b3 {[%clk 0:02:02]}  Ba3 {[%clk 0:00:39]} 19. Rb1 {[%clk 0:02:02]}  cxb3 {[%clk 0:00:31]} 20. Rxb3 {[%clk 0:02:00]}  Be7 {[%clk 0:00:30]} 21. a4 {[%clk 0:01:40]}  b4 {[%clk 0:00:30]} 22. Rc1 {[%clk 0:01:29]}  Rac8 {[%clk 0:00:28]} 23. Qb2 {[%clk 0:01:20]}  Bxd5 {[%clk 0:00:23]} 24. exd5 {[%clk 0:01:19]}  Na5 {[%clk 0:00:23]} 25. Rd3 {[%clk 0:01:14]}  Bf6 {[%clk 0:00:23]} 26. Bd4 {[%clk 0:01:00]}  Qxd5 {[%clk 0:00:21]} 27. Rcd1 {[%clk 0:00:57]}  Bxd4 {[%clk 0:00:19]} 28. Rxd4 {[%clk 0:00:57]}  Qc6 {[%clk 0:00:12]} 29. Rxb4 {[%clk 0:00:55]}  Nc4 {[%clk 0:00:11]} 30. Qd4 {[%clk 0:00:53]}  a5 {[%clk 0:00:12]} 31. Rb5 {[%clk 0:00:52]}  h6 {[%clk 0:00:11]} 32. Rc1 {[%clk 0:00:49]}  Qe6 {[%clk 0:00:11]} 33. h3 {[%clk 0:00:44]}  Nd6 {[%clk 0:00:12]} 34. Rbb1 {[%clk 0:00:41]}  Rxc1+ {[%clk 0:00:11]} 35. Rxc1 {[%clk 0:00:41]}  Nf5 {[%clk 0:00:11]} 36. Qc5 {[%clk 0:00:39]}  Ra8 {[%clk 0:00:10]} 37. Re1 {[%clk 0:00:37]}  Qf6 {[%clk 0:00:10]} 38. Re5 {[%clk 0:00:34]}  Nh4 {[%clk 0:00:10]} 39. Nd2 {[%clk 0:00:32]}  Ng6 {[%clk 0:00:10]} 40. Rd5 {[%clk 0:00:30]}  Qa1+ {[%clk 0:00:10]} 41. Kh2 {[%clk 0:00:29]}  Qxa4 {[%clk 0:00:11]} 42. Nc4 {[%clk 0:00:24]}  Qe8 {[%clk 0:00:10]} 43. Nd6 {[%clk 0:00:21]}  Qe6 {[%clk 0:00:08]} 44. Nf5 {[%clk 0:00:12]}  a4 {[%clk 0:00:08]} 45. Qd4 {[%clk 0:00:10]}  Qf6 {[%clk 0:00:06]} 46. Nxh6+ {[%clk 0:00:08]}  Kh7 {[%clk 0:00:06]} 47. Qxf6 {[%clk 0:00:04]}  gxf6 {[%clk 0:00:07]} 48. Nxf7 {[%clk 0:00:04]}  a3 {[%clk 0:00:07]} 49. Rd1 {[%clk 0:00:04]}  a2 {[%clk 0:00:07]} 50. Ra1 {[%clk 0:00:04]}  Nf4 {[%clk 0:00:07]} 51. Nd6 {[%clk 0:00:04]}  Ne2 {[%clk 0:00:05]} 52. Nb5 {[%clk 0:00:03]}  Nc1 {[%clk 0:00:05]} 53. Nc3 {[%clk 0:00:03]}  Nb3 {[%clk 0:00:05]} 54. Rxa2 {[%clk 0:00:03]}  Rc8 {[%clk 0:00:06]} 55. Ne4 {[%clk 0:00:02]}  Kg6 {[%clk 0:00:05]} 56. Rb2 {[%clk 0:00:02]}  Nd4 {[%clk 0:00:05]} 57. f3 {[%clk 0:00:02]}  Nf5 {[%clk 0:00:04]} 58. g4 {[%clk 0:00:01]}  Ne3 {[%clk 0:00:04]} 59. Kg3 {[%clk 0:00:01]}  Nf1+ {[%clk 0:00:04]} 60. Kf4 {[%clk 0:00:01]}  Rc1 {[%clk 0:00:03]} 61. Rf2 {[%clk 0:00:01]}  Rd1 {[%clk 0:00:03]} 62. h4 {[%clk 0:00:01]}  Ra1 {[%clk 0:00:03]} 63. h5+ {[%clk 0:00:01]}  Kf7 {[%clk 0:00:04]} 0-1


[Site "https://www.chess.com"]

[Event "Titled Tuesday Blitz February 14 Early 2023"]
[White "Sai Han Thiha"]
[Black "Pourkashiyan, Atousa"]
[WhiteFideId "13012290"]
[BlackFideId "12502014"]
[WhiteElo "2070"]
[BlackElo "2282"]
[Result "0-1"]
[Round "11"]
[TimeControl "180+2"]
[Date "2023.02.14"]
[WhiteClock "0:00:06"]
[BlackClock "0:01:28"]

1. e4 {[%clk 0:03:00]}  c5 {[%clk 0:02:59]} 2. Nf3 {[%clk 0:03:01]}  e6 {[%clk 0:02:59]} 3. g3 {[%clk 0:03:01]}  a6 {[%clk 0:02:59]} 4. Bg2 {[%clk 0:02:59]}  Nc6 {[%clk 0:02:59]} 5. O-O {[%clk 0:02:54]}  g6 {[%clk 0:03:00]} 6. c3 {[%clk 0:02:50]}  Bg7 {[%clk 0:02:58]} 7. d4 {[%clk 0:02:50]}  cxd4 {[%clk 0:02:57]} 8. cxd4 {[%clk 0:02:51]}  Nge7 {[%clk 0:02:57]} 9. Nc3 {[%clk 0:02:45]}  O-O {[%clk 0:02:56]} 10. Re1 {[%clk 0:02:38]}  d5 {[%clk 0:02:55]} 11. e5 {[%clk 0:02:38]}  b5 {[%clk 0:02:55]} 12. Bf4 {[%clk 0:02:30]}  Nf5 {[%clk 0:02:53]} 13. Qd2 {[%clk 0:02:30]}  Na5 {[%clk 0:02:48]} 14. Rad1 {[%clk 0:02:24]}  Nc4 {[%clk 0:02:48]} 15. Qe2 {[%clk 0:02:20]}  Bd7 {[%clk 0:02:48]} 16. h4 {[%clk 0:02:17]}  Rc8 {[%clk 0:02:47]} 17. h5 {[%clk 0:02:12]}  b4 {[%clk 0:02:47]} 18. Nb1 {[%clk 0:01:52]}  Bb5 {[%clk 0:02:47]} 19. Bg5 {[%clk 0:01:29]}  Qa5 {[%clk 0:02:34]} 20. Rd3 {[%clk 0:01:25]}  Qxa2 {[%clk 0:01:55]} 21. g4 {[%clk 0:01:22]}  Nh6 {[%clk 0:01:56]} 22. Nfd2 {[%clk 0:00:38]}  Nxb2 {[%clk 0:01:52]} 23. Qe3 {[%clk 0:00:28]}  Nxg4 {[%clk 0:01:51]} 24. Qg3 {[%clk 0:00:28]}  Nxd3 {[%clk 0:01:49]} 25. Qxg4 {[%clk 0:00:17]}  Nxe1 {[%clk 0:01:49]} 26. h6 {[%clk 0:00:18]}  Bh8 {[%clk 0:01:48]} 27. Qh4 {[%clk 0:00:16]}  Nxg2 {[%clk 0:01:44]} 28. Kxg2 {[%clk 0:00:15]}  Qc2 {[%clk 0:01:38]} 29. Bf6 {[%clk 0:00:09]}  Qf5 {[%clk 0:01:38]} 30. Bxh8 {[%clk 0:00:09]}  Kxh8 {[%clk 0:01:37]} 31. Nf3 {[%clk 0:00:09]}  Bf1+ {[%clk 0:01:30]} 32. Kg3 {[%clk 0:00:07]}  Qh3+ {[%clk 0:01:27]} 33. Qxh3 {[%clk 0:00:06]}  Bxh3 {[%clk 0:01:28]} 34. Kxh3 {[%clk 0:00:07]}  a5 {[%clk 0:01:27]} 35. Ng5 {[%clk 0:00:04]}  a4 {[%clk 0:01:27]} 36. Nd2 {[%clk 0:00:03]}  a3 {[%clk 0:01:27]} 37. Ndf3 {[%clk 0:00:02]}  Rc3 {[%clk 0:01:27]} 38. Kg4 {[%clk 0:00:01]}  Rxf3 {[%clk 0:01:27]} 39. Kxf3 {[%clk 0:00:01]}  a2 {[%clk 0:01:27]} 40. Kg3 {[%clk 0:00:01]}  a1=Q {[%clk 0:01:28]} 41. f4 {[%clk 0:00:02]}  Qxd4 {[%clk 0:01:28]} 42. Kg4 {[%clk 0:00:03]}  Qg1+ {[%clk 0:01:28]} 43. Kf3 {[%clk 0:00:03]}  Qxg5 {[%clk 0:01:27]} 44. fxg5 {[%clk 0:00:04]}  Rc8 {[%clk 0:01:27]} 45. Ke2 {[%clk 0:00:04]}  b3 {[%clk 0:01:28]} 46. Kd2 {[%clk 0:00:04]}  b2 {[%clk 0:01:29]} 47. Kd3 {[%clk 0:00:05]}  b1=Q+ {[%clk 0:01:29]} 48. Ke2 {[%clk 0:00:06]}  Rc2+ {[%clk 0:01:29]} 49. Ke3 {[%clk 0:00:07]}  Qb3+ {[%clk 0:01:28]} 50. Kf4 {[%clk 0:00:06]}  Rc4# {[%clk 0:01:28]} 0-1


[Site "https://www.chess.com"]

[Event "Titled Tuesday Blitz February 14 Early 2023"]
[White "Koridze, Lile"]
[Black "Andrews, Todd"]
[WhiteFideId "13612514"]
[BlackFideId "2012456"]
[WhiteElo "2191"]
[BlackElo "2220"]
[Result "0-1"]
[Round "11"]
[TimeControl "180+2"]
[Date "2023.02.14"]
[WhiteClock "0:01:45"]
[BlackClock "0:01:14"]

1. d4 {[%clk 0:03:00]}  Nf6 {[%clk 0:02:58]} 2. c4 {[%clk 0:03:01]}  g6 {[%clk 0:02:59]} 3. Nc3 {[%clk 0:02:54]}  Bg7 {[%clk 0:02:59]} 4. e4 {[%clk 0:02:54]}  d6 {[%clk 0:02:59]} 5. Nf3 {[%clk 0:02:54]}  O-O {[%clk 0:02:59]} 6. Be2 {[%clk 0:02:55]}  e5 {[%clk 0:03:00]} 7. d5 {[%clk 0:02:54]}  a5 {[%clk 0:02:59]} 8. Be3 {[%clk 0:02:51]}  Na6 {[%clk 0:02:57]} 9. Nd2 {[%clk 0:02:49]}  Nd7 {[%clk 0:02:55]} 10. O-O {[%clk 0:02:47]}  Nac5 {[%clk 0:02:52]} 11. a3 {[%clk 0:02:46]}  a4 {[%clk 0:02:47]} 12. Rb1 {[%clk 0:02:41]}  f5 {[%clk 0:02:44]} 13. f3 {[%clk 0:02:40]}  f4 {[%clk 0:02:44]} 14. Bf2 {[%clk 0:02:41]}  g5 {[%clk 0:02:43]} 15. Nb5 {[%clk 0:02:20]}  Rf7 {[%clk 0:02:39]} 16. b4 {[%clk 0:02:20]}  axb3 {[%clk 0:02:38]} 17. Nxb3 {[%clk 0:02:20]}  Nxb3 {[%clk 0:02:23]} 18. Qxb3 {[%clk 0:02:19]}  b6 {[%clk 0:02:15]} 19. Ra1 {[%clk 0:02:13]}  Bf8 {[%clk 0:02:14]} 20. a4 {[%clk 0:02:13]}  Rg7 {[%clk 0:02:14]} 21. Qc3 {[%clk 0:02:10]}  h5 {[%clk 0:01:56]} 22. h3 {[%clk 0:02:09]}  Nf6 {[%clk 0:01:54]} 23. a5 {[%clk 0:02:02]}  bxa5 {[%clk 0:01:49]} 24. Rxa5 {[%clk 0:02:01]}  Rxa5 {[%clk 0:01:49]} 25. Qxa5 {[%clk 0:02:02]}  g4 {[%clk 0:01:46]} 26. c5 {[%clk 0:01:59]}  gxh3 {[%clk 0:01:45]} 27. g4 {[%clk 0:01:54]}  fxg3 {[%clk 0:01:44]} 28. Be3 {[%clk 0:01:53]}  Ne8 {[%clk 0:01:26]} 29. cxd6 {[%clk 0:01:48]}  g2 {[%clk 0:01:19]} 30. Rc1 {[%clk 0:01:45]}  h2+ {[%clk 0:01:18]} 31. Kxh2 {[%clk 0:01:45]}  Qh4+ {[%clk 0:01:18]} 32. Kg1 {[%clk 0:01:45]}  Qh1+ {[%clk 0:01:15]} 33. Kf2 {[%clk 0:01:45]}  g1=Q+ {[%clk 0:01:14]} 0-1


[Site "https://www.chess.com"]